Cogmind - Beta 15 X1 @@@ ROGUE MODE // 2024.11.09 @ 19:26:11 Player: Spoodle Result: Destroyed by H-77 Assassin with Coil Gun Performance ------------- Evolutions (7) 3500 Regions Visited (28) 5600 Robots Destroyed (225) 1125 Value Destroyed (7199) 7199 Prototype IDs (69) 1380 Alien Tech Used (1) 200 Bonus (2429) 2429 TOTAL SCORE: 21433 Bonus ------- High Alert Combat Kills 200 Follower Combat Kills 1321 Network Hubs Disabled 200 Met Data Miner 300 Met Imprinter 300 Met Zhirov 300 Friendly Fire -192 Cogmind --------- Core Integrity 0/1300 Matter 5/300 Energy 100/100 System Corruption 1% Temperature Cool (0) Movement Core (50) Location -3/Research Parts ------- > --- POWER (2) -------- (None) > --- PROPULSION (6) --- (None) > --- UTILITY (11) ----- Advanced Signal Interpreter Improved System Shield > --- WEAPON (2) ------- (None) > --- INVENTORY (5) ---- Field Propulsion Array Experimental Sensor Array Long-range Terrain Scanner Transdimensional Reconstructor Peak State ------------ > --- POWER ------------ Light Angular Momentum Engine Light Antimatter Reactor > --- PROPULSION ------- Centrium Heavy Treads Advanced Myomer Leg Advanced Myomer Leg Advanced Myomer Leg > --- UTILITY ---------- Medium Storage Unit Experimental Sensor Array Advanced Signal Interpreter Reaction Control System Improved Utility Shielding Improved Medium Armor Plating Force Field Improved Hacking Suite Improved Hacking Suite Improved Hacking Suite Improved System Shield > --- WEAPON ----------- Heavy Disruptor Cannon > --- INVENTORY -------- Improved Fusion Compressor Gravmag System Improved Gyrokinetic Inverter Experimental Coolant Injector Long-range Terrain Scanner Transdimensional Reconstructor Gamma Bomb Array Mini Smartbomb Launcher Advanced Datajack Phasing Sabre [Rating: 125] Favorites ----------- Power Cooled Ion Engine Engine Cooled Ion Engine Power Core Micro Nuclear Core Reactor Light Antimatter Reactor Propulsion Light Treads Treads Light Treads Leg Aluminum Leg Hover Unit Gravmag System Flight Unit Improved VTOL Module Utility Medium Storage Unit Device Experimental Sensor Array Storage Medium Storage Unit Processor Advanced Signal Interpreter Hackware Improved Hacking Suite Protection Improved Propulsion Shielding Weapon High-powered Shotgun Energy Gun Heavy Particle Gun Energy Cannon Advanced Beam Cannon Ballistic Gun High-powered Shotgun Ballistic Cannon Hardcell Cannon Launcher Gamma Bomb Array Special Weapon Mining Laser Slashing Weapon Greatsword Piercing Weapon Lance Special Melee Weapon Improved Datajack Build | -11 -10 -10 -9 -9 -8 -7 -7 -7 -7 -6 -6 -6 -6 -6 -6 -6 -5 -5 -5 -5 -5 -4 -4 -4 -4 -4 -4 -3 ------- Run | Yrd Mat Min Mat Min Mat Fac Low Low Dat Pro Fac Was Fac Low Low Zio Pro Fac Upp Upp Zhi Pro Fac Ext Cet Arc Hub Res Slots Evolved 14 | . . . 2 . 2 2 . . . . 2 . . . . . . 2 . . . . 2 . . . . 2 Power 1 | . . . . . . . . . . . . . . . . . . 1 . . . . . . . . . . Propulsion 4 | . . . 1 . 1 1 . . . . . . . . . . . 1 . . . . . . . . . . Utility 9 | . . . 1 . 1 1 . . . . 2 . . . . . . . . . . . 2 . . . . 2 Weapon . | . . . . . . . . . . . . . . . . . . . . . . . . . . . . . Parts Attached 196 | 7 14 . 29 1 46 7 4 . . 1 3 1 5 3 1 . . 8 . . 3 . 4 15 14 13 7 10 Power 21 | 1 1 . 4 . 3 . . . . . 1 . . . . . . 2 . . 1 . 1 2 2 2 . 1 Engine 11 | 1 1 . 4 . 2 . . . . . . . . . . . . 1 . . . . . . . 1 . 1 Core 6 | . . . . . 1 . . . . . 1 . . . . . . 1 . . . . . 1 2 . . . Reactor 4 | . . . . . . . . . . . . . . . . . . . . . 1 . 1 1 . 1 . . Propulsion 59 | 2 7 . 7 1 17 1 1 . . . . . 1 1 . . . 2 . . 1 . . 3 4 4 4 3 Treads 27 | . 4 . 6 1 12 . . . . . . . . . . . . . . . . . . . 4 . . . Leg 8 | 2 3 . . . . . . . . . . . . . . . . . . . . . . . . . 3 . Wheel . | . . . . . . . . . . . . . . . . . . . . . . . . . . . . . Hover 9 | . . . . . 1 . . . . . . . . . . . . . . . 1 . . . . 4 1 2 Flight 15 | . . . 1 . 4 1 1 . . . . . 1 1 . . . 2 . . . . . 3 . . . 1 Utility 69 | 2 3 . 7 . 15 5 2 . . . 2 1 3 1 . . . 4 . . 1 . 3 4 5 7 . 4 Device 25 | 1 1 . 1 . 10 2 . . . . . . 1 . . . . 1 . . . . . 1 1 3 . 3 Storage 6 | 1 1 . 1 . 2 . . . . . . . 1 . . . . . . . . . . . . . . . Processor 6 | . . . . . 1 1 . . . . 2 . . . . . . 1 . . . . . . 1 . . . Hackware 14 | . . . . . 1 2 1 . . . . 1 1 . . . . 1 . . 1 . 2 1 . 3 . . Protection 18 | . 1 . 5 . 1 . 1 . . . . . . 1 . . . 1 . . . . 1 2 3 1 . 1 Artifact . | . . . . . . . . . . . . . . . . . . . . . . . . . . . . . Weapon 47 | 2 3 . 11 . 11 1 1 . . 1 . . 1 1 1 . . . . . . . . 6 3 . 3 2 Energy Gun 9 | 1 1 . . . 7 . . . . . . . . . . . . . . . . . . . . . . . Energy Cannon 4 | . . . 3 . . . . . . . . . . . . . . . . . . . . . . . . 1 Ballistic Gun 11 | 1 1 . 6 . 1 . . . . . . . . . . . . . . . . . . . 2 . . . Ballistic Cannon 3 | . . . . . . . . . . . . . . . . . . . . . . . . 1 . . 2 . Launcher 7 | . . . 1 . 1 . 1 . . . . . 1 . . . . . . . . . . 1 1 . 1 . Special Weapon 2 | . 1 . . . . . . . . 1 . . . . . . . . . . . . . . . . . . Impact Weapon . | . . . . . . . . . . . . . . . . . . . . . . . . . . . . . Slashing Weapon 8 | . . . 1 . 1 1 . . . . . . . 1 . . . . . . . . . 4 . . . . Piercing Weapon 1 | . . . . . . . . . . . . . . . 1 . . . . . . . . . . . . . Special Melee Weapon 2 | . . . . . 1 . . . . . . . . . . . . . . . . . . . . . . 1 Unidentified Prototypes 21 | . . . 3 . 6 1 . . . . . . 2 . . . . 1 . . 3 . . . 3 . 2 . Corrupted Parts 4 | . . . . . . . . . . . . . . . . . . . . . . . . . 4 . . . System Corruption 31 | . . . . . . . . . . . . . . . . . . . . . . . . . 31 . . . Parts Lost 55 | . 5 . . 1 4 . . . . . . . 1 . . . . . . . . . 1 7 3 1 8 24 Power 10 | . 1 . . . 1 . . . . . . . . . . . . . . . . . . 3 . . 1 4 Propulsion 17 | . 2 . . . . . . . . . . . 1 . . . . . . . . . . 2 1 . 4 7 Utility 19 | . . . . 1 3 . . . . . . . . . . . . . . . . . . 2 2 1 1 9 Weapon 9 | . 2 . . . . . . . . . . . . . . . . . . . . . 1 . . . 2 4 Highest Loss Streak 17 | . 2 . . 1 2 . . . . . . . 1 . . . . . . . . . 1 3 3 1 8 17 To Critical Strikes 2 | . . . . . . . . . . . . . . . . . . . . . . . . . . . 1 1 Average Backups 11 | 4 9 9 13 15 18 9 9 10 10 10 9 10 9 9 10 10 10 9 9 8 9 9 8 9 8 9 10 7 Power 1 | . . 1 . . 1 . . . . . . . 1 1 1 1 1 . . . . . . 1 1 2 2 . Propulsion 2 | 1 3 5 5 6 5 1 1 2 2 1 1 1 . 1 1 1 1 . 1 1 1 1 1 . . 1 2 1 Utility 4 | . 1 2 3 4 7 5 4 3 3 3 4 4 4 4 4 4 4 4 4 4 6 6 3 3 2 1 1 1 Weapon 2 | 1 2 1 3 4 3 2 3 4 4 4 3 3 3 2 3 3 3 3 3 2 1 1 1 2 2 3 3 1 Tool/Special . | . . . . . . . . . . . . . . . . . . . . . . . . . . . . . Unused Backups 40 | 1 3 . 9 . 10 3 . . . . 1 . 3 . . . . . . 1 1 . 1 1 2 . . 4 Power 2 | . . . . . 1 . . . . . . . 1 . . . . . . . . . . . . . . . Propulsion 7 | . . . 2 . 3 1 . . . . . . . . . . . . . . . . . . . . . 1 Utility 20 | 1 1 . 5 . 3 2 . . . . 1 . 2 . . . . . . 1 . . . 1 1 . . 2 Weapon 8 | . 1 . 2 . 2 . . . . . . . . . . . . . . . 1 . 1 . 1 . . . Tool/Special 3 | . 1 . . . 1 . . . . . . . . . . . . . . . . . . . . . . 1 Average Slot Usage (%) 92 | . 98 100 99 98 97 96 92 92 92 92 91 93 92 93 93 93 93 81 82 82 87 88 84 82 87 90 91 59 Engine 4 | . 13 14 11 11 8 . . . . . . . . . . . . 1 . . . . . . . 3 5 2 Core 3 | . . . . . . 7 7 7 7 7 6 6 6 6 6 6 6 9 11 11 11 11 7 2 9 6 . . Treads 14 | . 11 28 32 33 35 . . . . . . . . . . . . . . . . . . . 16 13 5 2 Leg 1 | . 15 . . . . . . . . . . . . . . . . . . . . . . . . . . 10 Hover 1 | . . . . . . . . . . . . . . . . . . . . . . . . . . 7 19 . Flight 13 | . . . . . . 38 38 38 38 38 33 33 32 33 33 33 33 23 23 23 22 23 21 20 8 4 . . Device 7 | . 5 8 6 9 15 7 5 7 7 6 6 6 6 5 6 6 6 5 5 5 5 4 4 6 2 5 4 7 Storage 7 | . 14 14 11 11 9 7 7 7 7 7 6 6 6 6 6 6 6 5 5 5 5 5 5 5 5 5 5 3 Processor 4 | . . . . . . 7 7 7 7 7 12 13 13 13 13 13 13 11 11 11 11 11 5 5 5 5 5 4 Hackware 8 | . . . . . 1 14 15 15 15 15 13 13 13 13 13 13 13 11 11 11 11 11 20 21 14 11 21 15 Protection 8 | . 8 5 15 11 6 . 1 . . . 6 6 6 6 6 6 6 5 5 5 4 5 10 8 12 15 10 3 Energy Gun 3 | . 13 14 . . 13 . . . . . . . . . . . . . . . . . . . . . . . Ballistic Gun 5 | . 13 14 19 19 3 . . . . . . . . . . . . . . . . . . . 4 10 4 . Slashing Weapon 3 | . . . . 2 . 7 6 7 7 7 5 6 5 5 6 6 6 5 5 5 5 5 5 8 3 . . 1 Peak Build Rating 125 | 7 8 8 21 21 41 51 51 51 51 51 63 65 70 71 71 68 68 93 90 90 92 92 99 109 112 118 117 125 Average Rating 55 | 5 7 7 17 20 29 44 49 51 50 50 60 63 66 70 67 68 68 88 90 89 90 91 97 98 102 111 113 85 On Entrance 61 | . 7 7 8 21 21 35 51 51 51 51 51 63 65 68 71 68 68 68 90 90 90 92 92 99 102 108 117 92 Naked Turns . | . . . . . . . . . . . . . . . . . . . . . . . . . . . . . Heaviest Build 78 | 13 18 18 41 40 65 22 22 21 21 22 24 24 26 31 24 24 24 36 29 29 28 35 36 43 63 78 67 58 Greatest Support 149 | 20 40 40 60 60 80 25 25 25 25 25 25 25 26 29 26 26 26 39 37 37 37 37 39 40 149 149 90 90 Greatest Overweight (x) 2 | . 1 . 1 . 2 . . . . . . . 1 1 . . . . . . . . . 1 2 . 1 1 Average Overweight (x) . | . . . . . . . . . . . . . . . . . . . . . . . . . . . . . Largest Inventory Capacity 20 | 8 10 10 15 15 20 10 10 10 10 10 10 10 10 10 10 10 10 10 10 10 10 10 10 10 10 10 10 10 Average Capacity 12 | 7 9 10 13 15 18 10 10 10 10 10 10 10 10 10 10 10 10 10 10 10 10 10 10 10 10 10 10 8 Most Carried 20 | 7 10 10 15 15 20 10 10 10 10 10 10 10 10 10 10 10 10 10 10 10 10 10 10 10 10 10 10 10 Average Carried 11 | 4 9 9 13 14 18 9 9 10 9 10 9 9 9 9 10 10 10 9 10 9 9 10 9 9 9 9 9 7 Final Capacity 15 | 8 10 10 15 15 10 10 10 10 10 10 10 10 10 10 10 10 10 10 10 10 10 10 10 10 10 10 10 5 Final Carried 15 | 6 9 10 15 15 10 10 10 10 10 10 10 10 10 10 10 10 10 10 10 10 10 10 10 10 10 10 10 5 Class Distribution -------------------- 36% | Mutant 22% | Hacker-Scout 18% | Hacker-Sprinter 16% | Scavenger-Mutant 4% | Hacker-Mutant Dominant Class ---------------- Mutant | -10/Materials Mutant | -10/Mines Mutant | -9/Materials Mutant | -9/Mines Mutant | -8/Materials Hacker-Sprinter | -7/Factory Hacker-Sprinter | -7/Lower Caves Hacker-Sprinter | -7/Lower Caves Hacker-Sprinter | -7/Data Miner Hacker-Sprinter | -6/Proximity Caves Hacker-Scout | -6/Factory Hacker-Scout | -6/Waste Hacker-Scout | -6/Factory Hacker-Scout | -6/Lower Caves Hacker-Scout | -6/Lower Caves Hacker-Scout | -6/Zion Hacker-Scout | -5/Proximity Caves Hacker-Scout | -5/Factory Hacker-Scout | -5/Upper Caves Hacker-Scout | -5/Upper Caves Hacker-Scout | -5/Zhirov Hacker-Scout | -4/Proximity Caves Hacker-Sprinter | -4/Factory Hacker-Sprinter | -4/Extension Scavenger-Mutant | -4/Cetus Scavenger-Mutant | -4/Archives Scavenger-Mutant | -4/Hub_04(d) Hacker-Mutant | -3/Research Resources | -11 -10 -10 -9 -9 -8 -7 -7 -7 -7 -6 -6 -6 -6 -6 -6 -6 -5 -5 -5 -5 -5 -4 -4 -4 -4 -4 -4 -3 ----------- Run | Yrd Mat Min Mat Min Mat Fac Low Low Dat Pro Fac Was Fac Low Low Zio Pro Fac Upp Upp Zhi Pro Fac Ext Cet Arc Hub Res Matter Collected 5762 | 315 328 . 1133 134 949 160 88 . . 40 70 10 130 234 160 . . . . 61 . 192 61 352 270 703 209 163 Remotely . | . . . . . . . . . . . . . . . . . . . . . . . . . . . . . Salvage Created 9807 | 204 748 . 1492 210 2395 162 282 . . . 196 64 379 197 92 . . . . . . 95 141 1016 370 712 574 478 Parts 506 | 12 37 . 98 14 139 8 6 . . . 6 2 16 12 4 . . . . . . 9 4 33 20 36 31 19 Haulers Intercepted 20 | . 1 . 6 . 6 1 . . . . . . 3 . . . . . . . . . 1 . . . 2 . Recyclers Shooed 5 | . . . 4 . 1 . . . . . . . . . . . . . . . . . . . . . . . Parts Field Recycled . | . . . . . . . . . . . . . . . . . . . . . . . . . . . . . Retrieved Matter . | . . . . . . . . . . . . . . . . . . . . . . . . . . . . . Parts Self-Destructed 12 | . . . . . . . 4 . . . . . . 5 . . 3 . . . . . . . . . . . Prevented 2 | . . . . . . . . . . . . . . . . . 2 . . . . . . . . . . . Kills | -11 -10 -10 -9 -9 -8 -7 -7 -7 -7 -6 -6 -6 -6 -6 -6 -6 -5 -5 -5 -5 -5 -4 -4 -4 -4 -4 -4 -3 ------- Run | Yrd Mat Min Mat Min Mat Fac Low Low Dat Pro Fac Was Fac Low Low Zio Pro Fac Upp Upp Zhi Pro Fac Ext Cet Arc Hub Res Combat Hostiles Destroyed 137 | . 17 . 29 7 42 . 4 . . . . . . 3 . . . . . . . . . 12 4 4 5 10 Melee 9 | . . . . . . . 2 . . . . . . 2 . . . . . . . . . 4 . . . 1 Guns 84 | . 17 . 22 7 33 . . . . . . . . . . . . . . . . . . . . 4 1 . Cannons 7 | . . . 5 . 1 . . . . . . . . . . . . . . . . . . . . . 1 . AOE 25 | . . . 2 . 5 . 2 . . . . . . 1 . . . . . . . . . 5 . . 1 9 Classes Destroyed 18 | 2 5 . 2 1 4 . 2 . . . . 1 . 1 . . . . . . . . . . . . . . Worker 17 | . 1 . 3 . 6 . . . . . 3 . 2 . . . . . . . . . . . . . 2 . Builder 6 | . . . . . 1 . . . . . . . . . . . . . . . . . . . . . 4 1 Tunneler 8 | 5 . . . . 1 1 . . . . . . . . . . . . . . . . . . . . 1 . Hauler 20 | . 1 . 6 . 6 1 . . . . . . 3 . . . . . . . . . 1 . . . 2 . Recycler 10 | 1 1 . 3 1 . 1 . . . . 1 . . . . . . . . . . . . 1 . . . 1 Operator 14 | . . . . . 4 . . . . . . . . . . . . . . . . . 1 . . 9 . . Watcher 15 | . 1 . 4 . 5 . . . . . 1 . 1 . . . . . . . . . 1 1 1 . . . Swarmer 34 | . 6 . 8 4 7 . 3 . . . . . . . . . . . . . . . . . . . . 6 Cutter 2 | . . . . . 2 . . . . . . . . . . . . . . . . . . . . . . . Grunt 66 | . 11 . 11 1 23 . . . . . . . . . . . . . . . . . . 12 . . 4 4 Brawler 3 | . . . 1 1 1 . . . . . . . . . . . . . . . . . . . . . . . Duelist 1 | . . . . . 1 . . . . . . . . . . . . . . . . . . . . . . . Sentry 21 | . . . 9 . 8 . . . . . . . . . . . . . . . . . . . . 4 . . Hunter 3 | . . . . . . . . . . . . . . 2 . . . . . . . . . . . . 1 . Programmer 2 | . . . . . . . 1 . . . . . . 1 . . . . . . . . . . . . . . Cetus Guard 4 | . . . . . . . . . . . . . . . . . . . . . . . . . 4 . . . Decomposer 1 | . . . . . . . 1 . . . . . . . . . . . . . . . . . . . . . Packrat 1 | . . . . . . . 1 . . . . . . . . . . . . . . . . . . . . . Samaritan 7 | . . . . . . . 1 . . . . . . 2 2 . . . . . . 2 . . . . . . Assembled 1 | . . . . 1 . . . . . . . . . . . . . . . . . . . . . . . . Martyr 1 | . . . . . . . . . . . . 1 . . . . . . . . . . . . . . . . Best Kill Streak 10 | 4 4 . 6 4 7 1 4 . . . 1 . 2 1 . . . . . . . . 2 8 4 3 10 6 Combat Bots Only 8 | . 3 . 3 4 6 . 4 . . . . . . 1 . . . . . . . . . 8 4 2 3 6 Max Kills in Single Turn 6 | 1 1 . 2 1 3 1 2 . . . 1 1 1 1 1 . . . . . . 1 1 3 2 2 6 2 Gunslinging . | . . . . . . . . . . . . . . . . . . . . . . . . . . . . . Exploded 3 | . . . 1 . 3 . 2 . . . . . . 1 . . . . . . . . . 3 . . 1 2 Melee 1 | . . . . . . . 1 . . . . . . 1 . . . . . . . . . 1 . . . 1 Uniques/NPCs Destroyed . | . . . . . . . . . . . . . . . . . . . . . . . . . . . . . Combat | -11 -10 -10 -9 -9 -8 -7 -7 -7 -7 -6 -6 -6 -6 -6 -6 -6 -5 -5 -5 -5 -5 -4 -4 -4 -4 -4 -4 -3 -------- Run | Yrd Mat Min Mat Min Mat Fac Low Low Dat Pro Fac Was Fac Low Low Zio Pro Fac Upp Upp Zhi Pro Fac Ext Cet Arc Hub Res Hostile Shots Fired 1152 | . 108 . 106 19 167 9 12 . . . 6 . 11 29 . . . 19 . . . 4 12 104 15 48 152 331 Missed 395 | . 23 . 24 3 47 5 5 . . . 4 . 4 8 . . . 11 . . . 2 6 43 6 12 52 140 Damage Taken 12311 | . 950 . 845 103 1549 69 106 . . . 12 . 109 349 . . . 161 . . . 50 118 1252 274 942 1827 3595 Core 2313 | . 202 . 67 11 96 . 17 . . . . . 5 49 . . . 36 . . . 26 16 248 . 55 174 1311 Absorbed by Shields 632 | . . . 135 43 353 . . . . . . . . . . . . . . . . . . 38 . . . 63 Reduced by Siege Mode 23 | . . . . . . . . . . . . . . . . . . . . . . . . . . 13 10 . Redirected to Shielding 356 | . 16 . 8 . . . 8 . . . . . 6 . . . . 13 . . . . 29 163 . 38 26 49 Ignored by Resistances 165 | . . . 8 2 155 . . . . . . . . . . . . . . . . . . . . . . . Regen/Repaired (Parts) 157 | . 86 . 22 . . . . . . . 49 . . . . . . . . . . . . . . . . . Core Remaining (%) 77 | 100 . 19 . 80 82 . . . . 97 . . . . . . 93 . . . . 93 . . . . 57 . Volleys Fired 458 | 15 66 . 89 11 160 . 2 . . . . . . 5 . . . . . . . . . 5 5 63 22 15 Largest 2 | 2 2 . 2 2 2 . 1 . . . . . . 1 . . . . . . . . . 1 2 2 2 1 Hottest 140 | 70 100 . 136 50 140 . 39 . . . . . . 50 . . . . . . . . . 80 80 70 110 110 Shots Fired 841 | 30 123 . 166 22 312 . 2 . . . . . . 5 . . . . . . . . . 5 6 125 30 15 Gun 741 | 30 122 . 139 22 296 . . . . . . . . . . . . . . . . . . . 2 125 5 . Cannon 63 | . . . 22 . 12 . . . . . . . . . . . . . . . . . . . . . 25 4 Launcher 36 | . . . 5 . 4 . 2 . . . . . . 5 . . . . . . . . . 5 4 . . 11 Special 1 | . 1 . . . . . . . . . . . . . . . . . . . . . . . . . . . Kinetic 441 | 15 60 . 139 22 48 . . . . . . . . . . . . . . . . . . . 2 125 30 . Thermal 360 | 15 63 . 22 . 260 . . . . . . . . . . . . . . . . . . . . . . . Explosive 27 | . . . 5 . 4 . 2 . . . . . . 5 . . . . . . . . . . . . . 11 Electromagnetic 13 | . . . . . . . . . . . . . . . . . . . . . . . . 5 4 . . 4 Robot Hit Streak 18 | 9 12 . 17 6 13 . . . . . . . . 3 . . . . . . . . . . 2 18 9 6 Robot Miss Streak 9 | 3 3 . 9 6 5 . . . . . . . . 7 . . . . . . . . . . . 3 1 1 Penetration Max 1 | . . . . . . . . . . . . . . . . . . . . . . . . . . 1 1 . Secondary Targets 8 | . 2 . 3 1 2 . . . . . . . . . . . . . . . . . . . . . . . Max Gunslinging Chain 1 | . 1 . 1 1 1 . . . . . . . . . . . . . . . . . . . . . . . Shots Hit Robots 605 | 20 79 . 113 13 194 5 10 . 1 . 5 1 7 5 2 . . 1 . . . 3 4 24 3 91 12 12 Core Hits 375 | 7 34 . 65 10 101 . 7 . . . 3 1 6 15 2 . . . . . . 2 2 26 20 31 18 25 Critical Kills 6 | . . . . . . . . . . . . . . . . . . . . . . . . . . 5 1 . Critical Parts Destroyed 10 | . 2 . . . . . . . . . . . . . . . . . . . . . . . . 8 . . Critical Strikes 43 | 1 7 . . . 14 . . . . . . . . . . . . . . . . . . . 1 18 2 . Burn 20 | 1 5 . . . 14 . . . . . . . . . . . . . . . . . . . . . . . Destroy 21 | . 2 . . . . . . . . . . . . . . . . . . . . . . . . 18 1 . Blast 1 | . . . . . . . . . . . . . . . . . . . . . . . . . . . 1 . Sever 1 | . . . . . . . . . . . . . . . . . . . . . . . . . 1 . . . Melee Attacks 237 | . . . 1 4 8 24 23 . 1 11 28 1 29 15 9 . 2 8 . 5 . 8 19 32 4 . . 5 Impact . | . . . . . . . . . . . . . . . . . . . . . . . . . . . . . Slashing 234 | . . . 1 4 8 22 23 . . 11 28 1 29 15 9 . 2 8 . 5 . 8 19 32 4 . . 5 Piercing . | . . . . . . . . . . . . . . . . . . . . . . . . . . . . . Sneak Attacks 34 | . . . . 1 2 5 3 . 1 . 4 1 4 1 2 . . . . . . 3 1 4 . . . 2 Combat Hostiles . | . . . . . . . . . . . . . . . . . . . . . . . . . . . . . Follow-up Attacks 3 | . . . . . . . . . . . . . . . . . . . . . . . . 1 2 . . . Damage Inflicted 21972 | 250 1051 . 2487 367 4288 301 959 . . . 520 92 628 463 254 . . 49 . . . 244 250 2436 638 2640 2149 1906 Guns 9918 | 250 1024 . 1985 282 3612 . . . . . . . . . . . . . . . . . . . 24 2640 101 . Cannons 1023 | . . . 349 . 131 . . . . . . . . . . . . . . . . . . . . . 453 90 Explosions 5685 | . . . 94 . 272 . 140 . . . . . . 252 . . . . . . . . . 1294 527 . 1589 1517 Melee 5142 | . . . . 85 190 301 819 . . . 520 92 628 211 254 . . 49 . . . 244 250 1142 87 . . 270 Ramming 204 | . 27 . 59 . 83 . . . . . . . . . . . . . . . . . . . . . 6 29 Kinetic 6804 | 136 602 . 1985 282 581 . . . . . . . . . . . . . . . . . . . 24 2640 554 . Thermal 4714 | 114 422 . 349 . 3162 . . . . . . . . . . . . . . . . . . 667 . . . . Explosive 2275 | . . . 94 . 272 . 140 . . . . . . 252 . . . . . . . . . . . . . 1517 Electromagnetic 2833 | . . . . . . . . . . . . . . . . . . . . . . . . 627 527 . 1589 90 Impact . | . . . . . . . . . . . . . . . . . . . . . . . . . . . . . Slashing 5142 | . . . . 85 190 301 819 . . . 520 92 628 211 254 . . 49 . . . 244 250 1142 87 . . 270 Piercing . | . . . . . . . . . . . . . . . . . . . . . . . . . . . . . Highest Corruption 32 | . . . . . . . . . . . . . . 1 1 1 . 3 . . . . . 1 32 32 14 1 Average Corruption 12 | . . . . . . . . . . . . . . 1 1 1 . 1 . . . . . 1 19 23 13 1 Corruption Purged 22 | . . . . . . . . . . . . . . . . . . 3 . . . . . . . 19 . . Corruption Blocked . | . . . . . . . . . . . . . . . . . . . . . . . . . . . . . Effects 92 | . . . . . . . . . . . . . . 2 3 . . 1 . . . . . 4 13 41 28 . Message Errors 21 | . . . . . . . . . . . . . . 1 . . . 1 . . . . . 2 4 6 7 . Matter Fused 23 | . . . . . . . . . . . . . . 1 2 . . . . . . . . 1 6 9 4 . Heat Flow Errors 10 | . . . . . . . . . . . . . . . . . . . . . . . . 1 . 5 4 . Energy Discharges 6 | . . . . . . . . . . . . . . . . . . . . . . . . . . 2 4 . Parts Rejected 1 | . . . . . . . . . . . . . . . . . . . . . . . . . . 1 . . Parts Fused 2 | . . . . . . . . . . . . . . . . . . . . . . . . . . 2 . . Data Loss (minor) 14 | . . . . . . . . . . . . . . . 1 . . . . . . . . . 1 10 2 . Data Loss (major) 2 | . . . . . . . . . . . . . . . . . . . . . . . . . . . 2 . Misfires 2 | . . . . . . . . . . . . . . . . . . . . . . . . . . 2 . . Alerts 2 | . . . . . . . . . . . . . . . . . . . . . . . . . . 1 1 . Misdirections 2 | . . . . . . . . . . . . . . . . . . . . . . . . . 2 . . . Weapon Failures 7 | . . . . . . . . . . . . . . . . . . . . . . . . . . 3 4 . Overload Shots . | . . . . . . . . . . . . . . . . . . . . . . . . . . . . . Overflow Damage 1246 | . . . 1 . 35 171 294 . . . 159 . 27 14 . . . 14 . . . 21 45 248 . . 90 127 Projectiles 25 | . . . . . 6 . . . . . . . . . . . . . . . . . . . . . . 19 Explosions 197 | . . . 1 . . . . . . . . . . 14 . . . . . . . . . 14 . . 90 78 Melee 1024 | . . . . . 29 171 294 . . . 159 . 27 . . . . 14 . . . 21 45 234 . . . 30 Knockbacks 2 | . . . . . . . . . . . . . . . . . . . . . . . . . . . 2 . Impact . | . . . . . . . . . . . . . . . . . . . . . . . . . . . . . Kinetic 2 | . . . . . . . . . . . . . . . . . . . . . . . . . . . 2 . Secondary . | . . . . . . . . . . . . . . . . . . . . . . . . . . . . . Self-Inflicted Damage 237 | . . . 24 . 115 . . . . . . . . . . . . . . . . . . . . . 98 . Shots 5 | . . . 1 . 3 . . . . . . . . . . . . . . . . . . . . . 1 . Rammed 27 | . 3 1 11 . 10 . . . . . . . . . . . . . . . . . . . . . 1 1 Targets Rammed 44 | . 8 1 14 . 12 . . . . . . . . . . . . . . . . . . . . . 1 8 Kicked 11 | . 4 . . . . . . . . . . . . . . . . . . . . . . . . . . 7 Crushed 6 | . 1 . 3 . 2 . . . . . . . . . . . . . . . . . . . . . . . Highest Temperature 325 | 63 169 . 150 . 325 8 3 3 3 3 . . 4 24 . . . 14 . . . . . 72 29 256 239 . Average Temperature 46 | 25 54 . 48 . 69 3 2 2 2 2 . . 2 12 . . . 5 . . . . . 22 15 131 79 . Received Heat Transfer 2455 | . 459 . 294 8 645 27 . . . . . . 15 . . . . 81 . . . 9 . 279 9 90 343 196 Effects 3 | . . . . . 3 . . . . . . . . . . . . . . . . . . . . . . . Interference 3 | . . . . . 3 . . . . . . . . . . . . . . . . . . . . . . . Siege Activations 5 | . . . . . . . . . . . . . . . . . . . . . . . . . . 4 1 . Total Turns 160 | . . . . . . . . . . . . . . . . . . . . . . . . . . 139 21 . Longest Duration 46 | . . . . . . . . . . . . . . . . . . . . . . . . . . 46 21 . Martial Activations . | . . . . . . . . . . . . . . . . . . . . . . . . . . . . . Shielding Activations . | . . . . . . . . . . . . . . . . . . . . . . . . . . . . . Robots Disrupted . | . . . . . . . . . . . . . . . . . . . . . . . . . . . . . Combat Hostiles . | . . . . . . . . . . . . . . . . . . . . . . . . . . . . . Robots Corrupted 11 | . . . . . 1 . . . . . . . . . . . . . . . . . . 3 4 . 3 . Combat Hostiles 9 | . . . . . . . . . . . . . . . . . . . . . . . . 3 4 . 2 . Parts Fried 13 | . . . . . . . . . . . . . . . . . . . . . . . . 5 3 . 5 . Impact Corruptions 1 | . . . . . 1 . . . . . . . . . . . . . . . . . . . . . . . Robots Melted 3 | . . . . . 3 . . . . . . . . . . . . . . . . . . . . . . . Combat Hostiles 3 | . . . . . 3 . . . . . . . . . . . . . . . . . . . . . . . Parts Melted 19 | 1 . . . . 17 . . . . . . . . . . . . . . . . . . 1 . . . . Heat Transferred 10083 | 407 1591 . 629 . 6956 . . . . . . . . . . . . . . . . . . 500 . . . . Parts Sabotaged . | . . . . . . . . . . . . . . . . . . . . . . . . . . . . . Parts Stolen . | . . . . . . . . . . . . . . . . . . . . . . . . . . . . . Parts Stripped . | . . . . . . . . . . . . . . . . . . . . . . . . . . . . . Power Chain Reactions 4 | . . . . . . . . . . . . . . . . . . . . . . . . 3 1 . . . Alert | -11 -10 -10 -9 -9 -8 -7 -7 -7 -7 -6 -6 -6 -6 -6 -6 -6 -5 -5 -5 -5 -5 -4 -4 -4 -4 -4 -4 -3 ------- Run | Yrd Mat Min Mat Min Mat Fac Low Low Dat Pro Fac Was Fac Low Low Zio Pro Fac Upp Upp Zhi Pro Fac Ext Cet Arc Hub Res Maximum Alert Level 2 | . . . 2 1 2 2 . . . . . . 2 . . . . . . . . . . 1 . . 2 1 Low Security (%) 66 | 100 100 100 48 94 47 . . . . . 100 100 9 . . . . 100 . . . . 100 64 100 100 94 57 Level 1 19 | . . . 25 5 14 87 . . . . . . 68 . . . . . . . . . . 35 . . . 42 Level 2 13 | . . . 25 . 37 12 . . . . . . 21 . . . . . . . . . . . . . 5 . Level 3 . | . . . . . . . . . . . . . . . . . . . . . . . . . . . . . Level 4 . | . . . . . . . . . . . . . . . . . . . . . . . . . . . . . Level 5 . | . . . . . . . . . . . . . . . . . . . . . . . . . . . . . High Security . | . . . . . . . . . . . . . . . . . . . . . . . . . . . . . Max Security . | . . . . . . . . . . . . . . . . . . . . . . . . . . . . . Peak Influence 695 | 10 138 39 492 210 695 440 . . . . 53 27 512 . . . . 82 . . . . 170 305 101 98 508 257 Initial 312 | . . 39 . 190 22 312 . . . . . 12 . . . . . . . . . . . 26 101 . . 257 Average 172 | 1 62 16 236 142 309 342 . . . . 15 6 329 . . . . 25 . . . . 93 126 27 36 32 173 Influence Increases 8028 | 30 521 . 1078 148 1321 422 150 . . . 202 57 912 170 . . 55 204 . . . 15 247 978 101 257 622 538 Destroy 0b10 Robot/C 3560 | . 340 . 580 120 840 120 80 . . . . . 380 60 . . 40 . . . . . . 540 80 80 100 200 Destroy 0b10 Robot/NC 500 | 30 20 . 80 5 115 30 5 . . . 25 . 30 . . . . . . . . . 15 40 5 45 45 10 Destroy Leader 728 | . 74 . 170 20 222 24 20 . . . 2 . 96 20 . . 10 . . . . . 4 44 . . 2 20 Allied During Kill 437 | . . . . . . 6 . . . . . . 242 . . . 5 . . . . . . 184 . . . . Successful Hack 517 | . 8 . 35 . 40 88 . . . . 96 . 78 . . . . 46 . . . . 20 68 . . 18 20 Select Force Hacks 120 | . 60 . 60 . . . . . . . . . . . . . . . . . . . . . . . . . Disable Machine 330 | . . . 60 . 45 15 . . . . 15 . 15 . . . . . . . . . . 15 . 90 60 15 Anti-Garrison Action 150 | . . . . . . . . . . . . . . . . . . . . . . . . . . . 150 . Destroy Structure 606 | . 4 . 48 3 29 19 . . . . 19 57 11 . . . . 8 . . . . 28 42 16 42 202 78 Partial Spotted 90 | . . . . . . . . . . . 45 . 30 . . . . . . . . . . 15 . . . . Lose Combat Pursuer 990 | . 15 . 45 . 30 120 45 . . . . . 30 90 . . . 150 . . . 15 180 30 . . 45 195 Influence Decreases 6256 | 30 419 39 590 280 655 294 270 80 . . 167 69 640 214 70 . 55 204 . . . 15 192 822 202 257 132 560 Time Decay 4724 | 30 379 39 590 270 615 254 230 80 . . 157 39 289 214 70 . 15 204 . . . 15 182 436 111 247 88 170 Lost Part 481 | . 40 . . 10 40 . . . . . . . 10 . . . . . . . . . . 67 20 10 44 240 Lost Ally 751 | . . . . . . 40 40 . . . 10 30 191 . . . 40 . . . . . 10 319 71 . . . Purge Threat 300 | . . . . . . . . . . . . . 150 . . . . . . . . . . . . . . 150 Squads Dispatched 41 | . 5 . 2 . 9 3 . . . . 2 . 9 . . . . . . . . . 1 2 . . 5 3 Investigation 16 | . 4 . 2 . 3 2 . . . . 2 . 3 . . . . . . . . . . . . . . . Extermination 1 | . . . . . . . . . . . . . 1 . . . . . . . . . . . . . . . Reinforcement 19 | . 1 . . . 5 1 . . . . . . 2 . . . . . . . . . 1 2 . . 4 3 Assault 1 | . . . . . . . . . . . . . . . . . . . . . . . . . . . 1 . Garrison 4 | . . . . . 1 . . . . . . . 3 . . . . . . . . . . . . . . . Intercept . | . . . . . . . . . . . . . . . . . . . . . . . . . . . . . Searches Triggered . | . . . . . . . . . . . . . . . . . . . . . . . . . . . . . Construction Impeded 6 | . . . . . . 1 . . . . . . . . . . . . . . . . . 2 . . 1 2 Haulers Reinforced 1 | . . . . . . . . . . . . . 1 . . . . . . . . . . . . . . . Active Scanning Responses . | . . . . . . . . . . . . . . . . . . . . . . . . . . . . . Cargo Convoy Interrupts . | . . . . . . . . . . . . . . . . . . . . . . . . . . . . . Stealth | -11 -10 -10 -9 -9 -8 -7 -7 -7 -7 -6 -6 -6 -6 -6 -6 -6 -5 -5 -5 -5 -5 -4 -4 -4 -4 -4 -4 -3 --------- Run | Yrd Mat Min Mat Min Mat Fac Low Low Dat Pro Fac Was Fac Low Low Zio Pro Fac Upp Upp Zhi Pro Fac Ext Cet Arc Hub Res Distress Signals 18 | . 1 . 6 . 3 1 . . . . . . 1 . . . . 2 . . . . . 2 1 . . 1 Communications Jammed . | . . . . . . . . . . . . . . . . . . . . . . . . . . . . . Distress Signals . | . . . . . . . . . . . . . . . . . . . . . . . . . . . . . Times Spotted 334 | . 30 . 44 7 64 16 5 . . . 3 4 13 10 . . . 16 . . . 1 17 36 5 19 13 31 Peak Tracking Total 16 | . 4 . 5 4 6 8 3 . . . 1 2 5 4 . . . 7 . . . 1 9 9 5 1 10 16 Tactical Retreats 32 | . 1 . 2 . 2 2 1 . . . . . 1 2 . . . 5 . . . 1 3 2 . . 1 9 Traps | -11 -10 -10 -9 -9 -8 -7 -7 -7 -7 -6 -6 -6 -6 -6 -6 -6 -5 -5 -5 -5 -5 -4 -4 -4 -4 -4 -4 -3 ------- Run | Yrd Mat Min Mat Min Mat Fac Low Low Dat Pro Fac Was Fac Low Low Zio Pro Fac Upp Upp Zhi Pro Fac Ext Cet Arc Hub Res Traps Triggered 10 | . 2 . . . 2 . . . . . 1 . 2 . . . . . . . . . . 2 . . . 1 Indirectly . | . . . . . . . . . . . . . . . . . . . . . . . . . . . . . Trap Hack Attempts 19 | . . . . . . 19 . . . . . . . . . . . . . . . . . . . . . . Triggered . | . . . . . . . . . . . . . . . . . . . . . . . . . . . . . Disarmed 1 | . . . . . . 1 . . . . . . . . . . . . . . . . . . . . . . Reprogrammed 3 | . . . . . . 3 . . . . . . . . . . . . . . . . . . . . . . Reused . | . . . . . . . . . . . . . . . . . . . . . . . . . . . . . Traps Extracted . | . . . . . . . . . . . . . . . . . . . . . . . . . . . . . Installed . | . . . . . . . . . . . . . . . . . . . . . . . . . . . . . Triggered . | . . . . . . . . . . . . . . . . . . . . . . . . . . . . . Machines | -11 -10 -10 -9 -9 -8 -7 -7 -7 -7 -6 -6 -6 -6 -6 -6 -6 -5 -5 -5 -5 -5 -4 -4 -4 -4 -4 -4 -3 ---------- Run | Yrd Mat Min Mat Min Mat Fac Low Low Dat Pro Fac Was Fac Low Low Zio Pro Fac Upp Upp Zhi Pro Fac Ext Cet Arc Hub Res Machines Disabled 24 | . . . 4 . 3 1 . . . . 1 . 1 1 . . . . . . . . . 1 . 6 5 1 Max in Single Turn 5 | . . . 1 . 1 . . . . . 1 . . 1 . . . . . . . . . . . 1 5 1 Garrison Access 10 | . . . . . 1 2 . . . . 4 . . . . . . 1 . . . . 1 . . . 1 . Network Hub 1 | . . . . . . . . . . . . . . . . . . . . . . . . . . . 1 . Machines Repaired . | . . . . . . . . . . . . . . . . . . . . . . . . . . . . . Machines Dismantled . | . . . . . . . . . . . . . . . . . . . . . . . . . . . . . Machines Sabotaged . | . . . . . . . . . . . . . . . . . . . . . . . . . . . . . Overloaded Fab Kills . | . . . . . . . . . . . . . . . . . . . . . . . . . . . . . Hacking | -11 -10 -10 -9 -9 -8 -7 -7 -7 -7 -6 -6 -6 -6 -6 -6 -6 -5 -5 -5 -5 -5 -4 -4 -4 -4 -4 -4 -3 --------- Run | Yrd Mat Min Mat Min Mat Fac Low Low Dat Pro Fac Was Fac Low Low Zio Pro Fac Upp Upp Zhi Pro Fac Ext Cet Arc Hub Res Machines Accessed 127 | . 9 . 12 . 9 17 1 2 3 . 18 . 19 . 1 . . 8 1 1 4 . 7 9 . . 3 3 Terminals 74 | . 6 . 8 . 6 10 . . . . 9 . 14 . . . . 5 . . . . 3 8 . . 3 2 Fabricators 11 | . . . . . . 3 . . . . 3 . 3 . . . . 1 . . . . 1 . . . . . Repair Stations 7 | . 1 . 1 . . 1 . . . . 1 . 1 . . . . 1 . . . . 1 . . . . . Recycling Units 9 | . 2 . 1 . . 1 . . . . 1 . 1 . . . . . . . . . 1 1 . . . 1 Scanalyzers 4 | . . . 2 . 2 . . . . . . . . . . . . . . . . . . . . . . . Garrison Access 9 | . . . . . 1 2 . . . . 4 . . . . . . 1 . . . . 1 . . . . . Total Hacks 439 | . 28 . 30 . 36 49 1 2 26 . 54 . 64 . 1 . . 39 1 1 17 . 28 28 . . 9 25 Successful 283 | . 19 . 18 . 20 27 1 2 26 . 30 . 34 . 1 . . 23 1 1 17 . 17 24 . . 7 15 Failed 154 | . 8 . 12 . 16 22 . . . . 24 . 30 . . . . 16 . . . . 11 3 . . 2 10 Catastrophic 14 | . . . . . 1 . . . . . 4 . 5 . . . . . . . . . 2 1 . . . 1 Database Lockouts 2 | . 1 . . . . . . . . . . . . . . . . . . . . . . 1 . . . . Manual 228 | . 20 . 22 . 19 21 . . . . 26 . 39 . . . . 22 . . . . 14 21 . . 7 17 Terminals 300 | . 24 . 24 . 22 35 . . . . 34 . 55 . . . . 34 . . . . 18 27 . . 9 18 Fabricators 26 | . . . . . . 8 . . . . 7 . 5 . . . . 3 . . . . 3 . . . . . Repair Stations 14 | . 2 . 2 . . 3 . . . . 2 . 1 . . . . 1 . . . . 3 . . . . . Recycling Units 23 | . 2 . 1 . . 1 . . . . 5 . 3 . . . . . . . . . 3 1 . . . 7 Scanalyzers 13 | . . . 3 . 10 . . . . . . . . . . . . . . . . . . . . . . . Garrison Access 14 | . . . . . 4 2 . . . . 6 . . . . . . 1 . . . . 1 . . . . . Terminal Hacks 134 | . 6 . 6 . 4 10 1 2 26 . 7 . 15 . 1 . . 9 1 1 17 . 8 9 . . 4 7 Record 14 | . 1 . . . . . . . 6 . . . . . . . . . . . 5 . . 2 . . . . Part Schematic 20 | . . . . . . . . . 12 . . . 1 . . . . . . . 4 . . 1 . . . 2 Robot Schematic 5 | . . . . . . . . . 5 . . . . . . . . . . . . . . . . . . . Robot Analysis 8 | . 1 . 1 . . . . . . . . . . . . . . . . . 4 . . 2 . . . . Prototype ID Bank 21 | . . . 1 . 2 1 . . 3 . 1 . 5 . . . . . . . 4 . 2 1 . . . 1 Open Door 6 | . . . . . . . 1 2 . . . . . . 1 . . . 1 1 . . . . . . . . Level Access Points 1 | . . . . . . . . . . . . . . . . . . . . . . . . . . . 1 . Branch Access Points 6 | . . . . . . 1 . . . . 1 . 1 . . . . 1 . . . . 1 . . . . 1 Emergency Access Points 1 | . . . . . . . . . . . . . 1 . . . . . . . . . . . . . . . Machine Index 1 | . . . . . . 1 . . . . . . . . . . . . . . . . . . . . . . Terminal Index 3 | . . . . . 1 . . . . . . . 1 . . . . 1 . . . . . . . . . . Repair Station Index 1 | . . . . . . . . . . . . . . . . . . . . . . . 1 . . . . . Garrison Index 1 | . . . . . . . . . . . . . . . . . . 1 . . . . . . . . . . Alert Level 3 | . 1 . . . . . . . . . . . 1 . . . . . . . . . . . . . . 1 Unreport Threat 2 | . . . . . . . . . . . . . 1 . . . . . . . . . . . . . . 1 Locate Traps 14 | . 1 . 2 . . 4 . . . . 1 . 1 . . . . 3 . . . . 2 . . . . . Patrol Status 6 | . . . . . . 1 . . . . 2 . . . . . . 2 . . . . . 1 . . . . Hauler Manifests 2 | . 1 . . . . . . . . . . . . . . . . 1 . . . . . . . . . . Zone Layout 19 | . 1 . 2 . 1 2 . . . . 2 . 3 . . . . . . . . . 2 2 . . 3 1 Fabricator Hacks 9 | . . . . . . 4 . . . . 2 . 2 . . . . 1 . . . . . . . . . . Network Status 1 | . . . . . . . . . . . . . . . . . . 1 . . . . . . . . . . Load Schematic 4 | . . . . . . 2 . . . . 1 . 1 . . . . . . . . . . . . . . . Build 4 | . . . . . . 2 . . . . 1 . 1 . . . . . . . . . . . . . . . Repair Station Hacks 7 | . 2 . 2 . . . . . . . 2 . . . . . . . . . . . 1 . . . . . Scan Component 4 | . 1 . 1 . . . . . . . 1 . . . . . . . . . . . 1 . . . . . Repair 3 | . 1 . 1 . . . . . . . 1 . . . . . . . . . . . . . . . . . Recycling Unit Hacks 4 | . . . . . . . . . . . 1 . 1 . . . . . . . . . 1 . . . . 1 Retrieve Components 4 | . . . . . . . . . . . 1 . 1 . . . . . . . . . 1 . . . . 1 Scanalyzer 8 | . . . 1 . 7 . . . . . . . . . . . . . . . . . . . . . . . Insert Component 3 | . . . 1 . 2 . . . . . . . . . . . . . . . . . . . . . . . Analyze 5 | . . . . . 5 . . . . . . . . . . . . . . . . . . . . . . . Garrison Access Hacks 9 | . . . . . 1 2 . . . . 4 . . . . . . 1 . . . . 1 . . . . . Seal Access 9 | . . . . . 1 2 . . . . 4 . . . . . . 1 . . . . 1 . . . . . Unauthorized Hacks 112 | . 11 . 9 . 8 11 . . . . 14 . 16 . . . . 12 . . . . 6 15 . . 3 7 Terminals 88 | . 9 . 7 . 8 9 . . . . 9 . 12 . . . . 10 . . . . 3 14 . . 3 4 Track 10 | . 1 . . . . 1 . . . . . . 2 . . . . 1 . . . . 1 2 . . 2 . Assimilate 10 | . . . . . . . . . . . 2 . 2 . . . . 1 . . . . 1 4 . . . . Botnet 18 | . 2 . 1 . 2 2 . . . . 2 . 2 . . . . 2 . . . . 1 2 . . 1 1 Disrupt 1 | . . . . . . . . . . . . . . . . . . . . . . . . . . . . 1 Operators 7 | . 1 . 1 . 1 1 . . . . . . 1 . . . . 1 . . . . . . . . . 1 Skim 42 | . 5 . 5 . 5 5 . . . . 5 . 5 . . . . 5 . . . . . 6 . . . 1 Fabricators 8 | . . . . . . 2 . . . . 2 . 2 . . . . 1 . . . . 1 . . . . . Prioritize 2 | . . . . . . 1 . . . . 1 . . . . . . . . . . . . . . . . . Liberate 1 | . . . . . . . . . . . . . 1 . . . . . . . . . . . . . . . Haulers 3 | . . . . . . . . . . . 1 . . . . . . 1 . . . . 1 . . . . . Recompile 2 | . . . . . . 1 . . . . . . 1 . . . . . . . . . . . . . . . Repair Stations 2 | . . . . . . . . . . . . . 1 . . . . 1 . . . . . . . . . . Mechanics 1 | . . . . . . . . . . . . . . . . . . 1 . . . . . . . . . . Patch 1 | . . . . . . . . . . . . . 1 . . . . . . . . . . . . . . . Recycling Units 13 | . 2 . 1 . . . . . . . 3 . 1 . . . . . . . . . 2 1 . . . 3 Reject 2 | . . . . . . . . . . . 1 . . . . . . . . . . . . . . . . 1 Recyclers 5 | . . . . . . . . . . . 1 . 1 . . . . . . . . . 1 1 . . . 1 Mask 3 | . . . . . . . . . . . 1 . . . . . . . . . . . 1 . . . . 1 Tunnel 3 | . 2 . 1 . . . . . . . . . . . . . . . . . . . . . . . . . Scanalyzers 1 | . . . 1 . . . . . . . . . . . . . . . . . . . . . . . . . Extract 1 | . . . 1 . . . . . . . . . . . . . . . . . . . . . . . . . Garrison Access . | . . . . . . . . . . . . . . . . . . . . . . . . . . . . . Data Cores Recovered 1 | . . . . . . . . . . . . . . . . . . . . . . . . 1 . . . . Used . | . . . . . . . . . . . . . . . . . . . . . . . . . . . . . Hacking Detections 93 | . 6 . 11 . 9 14 . . . . 13 . 17 . . . . 6 . . . . 6 6 . . 3 2 Full Trace Events 7 | . . . . . 3 1 . . . . 2 . 1 . . . . . . . . . . . . . . . Feedback Events . | . . . . . . . . . . . . . . . . . . . . . . . . . . . . . Feedback Blocked . | . . . . . . . . . . . . . . . . . . . . . . . . . . . . . Robot Schematics Acquired 7 | . . . . . . . . . 5 . . . . . . 2 . . . . . . . . . . . . Robots Built 2 | . . . . . . 2 . . . . . . . . . . . . . . . . . . . . . . Authchips . | . . . . . . . . . . . . . . . . . . . . . . . . . . . . . Time 38 | . . . . . . 38 . . . . . . . . . . . . . . . . . . . . . . Total Robot Build Rating 6 | . . . . . . 6 . . . . . . . . . . . . . . . . . . . . . . Part Schematics Acquired 36 | . . . 2 . 1 . . . 12 . . . 1 . . 13 . . . . 4 . . 1 . . . 2 Parts Built 2 | . . . . . . 1 . . . . . . 1 . . . . . . . . . . . . . . . Authchips 2 | . . . . . . 1 . . . . . . 1 . . . . . . . . . . . . . . . Time 203 | . . . . . . 51 . . . . 76 . 76 . . . . . . . . . . . . . . . Total Part Build Rating 13 | . . . . . . 8 . . . . . . 5 . . . . . . . . . . . . . . . Parts Repaired 3 | . 1 . 1 . . . . . . . 1 . . . . . . . . . . . . . . . . . Time 102 | . 26 . 32 . . . . . . . 44 . . . . . . . . . . . . . . . . . Parts Recycled . | . . . . . . . . . . . . . . . . . . . . . . . . . . . . . Recycled Matter . | . . . . . . . . . . . . . . . . . . . . . . . . . . . . . Retrieved Matter . | . . . . . . . . . . . . . . . . . . . . . . . . . . . . . Retrieved Components 6 | . . . . . . . . . . . . . 3 . . . . . . . . . 1 . . . . 2 Parts Scanalyzed 1 | . . . . . 1 . . . . . . . . . . . . . . . . . . . . . . . Part Schematics Acquired 1 | . . . . . 1 . . . . . . . . . . . . . . . . . . . . . . . Parts Damaged . | . . . . . . . . . . . . . . . . . . . . . . . . . . . . . Bothacking | -11 -10 -10 -9 -9 -8 -7 -7 -7 -7 -6 -6 -6 -6 -6 -6 -6 -5 -5 -5 -5 -5 -4 -4 -4 -4 -4 -4 -3 ------------ Run | Yrd Mat Min Mat Min Mat Fac Low Low Dat Pro Fac Was Fac Low Low Zio Pro Fac Upp Upp Zhi Pro Fac Ext Cet Arc Hub Res Used RIF Installer . | . . . . . . . . . . . . . . . . . . . . . . . . . . . . . Robots Hacked 1 | . . . . . . . . . 1 . . . . . . . . . . . . . . . . . . . Non-combat . | . . . . . . . . . . . . . . . . . . . . . . . . . . . . . Combat 1 | . . . . . . . . . 1 . . . . . . . . . . . . . . . . . . . Robot Hacks Applied 1 | . . . . . . . . . 1 . . . . . . . . . . . . . . . . . . . parse_system 1 | . . . . . . . . . 1 . . . . . . . . . . . . . . . . . . . Relay Couplers Released 3 | . . . . . . . . . . . . . . . . . . . . . . . . . . . 3 . Machine Destruction 3 | . . . . . . . . . . . . . . . . . . . . . . . . . . . 3 . Fabnet Peak Effective % . | . . . . . . . . . . . . . . . . . . . . . . . . . . . . . Robots Rewired 19 | . . . . . . 2 . . . . . . . . . . . . . . . . . 17 . . . . Allies Hacked 2 | . . . . . . 1 . . . . . . 1 . . . . . . . . . . . . . . . Hacks Repelled . | . . . . . . . . . . . . . . . . . . . . . . . . . . . . . Allies | -11 -10 -10 -9 -9 -8 -7 -7 -7 -7 -6 -6 -6 -6 -6 -6 -6 -5 -5 -5 -5 -5 -4 -4 -4 -4 -4 -4 -3 -------- Run | Yrd Mat Min Mat Min Mat Fac Low Low Dat Pro Fac Was Fac Low Low Zio Pro Fac Upp Upp Zhi Pro Fac Ext Cet Arc Hub Res Total Allies 70 | . . . . . . 4 . . . . 1 20 5 . . 7 . 1 . . . . 1 31 . . . . Largest Group 20 | . . . . . . 2 2 . . . 1 20 9 . . 7 7 1 . . . . 1 11 4 . . . Highest-Rated Group 715 | . . . . . . 64 41 . . . 26 715 361 . . 163 163 10 . . . . 26 503 138 . . . Highest-Rated Ally 159 | . . . . . . 32 21 . . . 26 50 46 . . 31 31 10 . . . . 26 159 51 . . . Total Orders 10 | . . . . . . . 1 . . . . . . . . . . . . . . . 1 7 1 . . . STAY 7 | . . . . . . . 1 . . . . . . . . . . . . . . . 1 5 . . . . ROAM 1 | . . . . . . . . . . . . . . . . . . . . . . . . . 1 . . . FOLLOW 2 | . . . . . . . . . . . . . . . . . . . . . . . . 2 . . . . Ally Attacks 416 | . . . . . . 23 15 . . . . 104 112 . . . 10 . . . . . . 149 3 . . . Total Damage 13054 | . . . . . . 577 355 . . . . 5278 2525 . . . 213 . . . . . . 4093 13 . . . Kills 66 | . . . . . . 9 1 . . . . 13 19 . . . 2 . . . . . . 22 . . . . Allies Corrupted 6 | . . . . . . 1 1 . . . . . 2 . . . . . . . . . . 2 . . . . Allies Melted . | . . . . . . . . . . . . . . . . . . . . . . . . . . . . . Intel | -11 -10 -10 -9 -9 -8 -7 -7 -7 -7 -6 -6 -6 -6 -6 -6 -6 -5 -5 -5 -5 -5 -4 -4 -4 -4 -4 -4 -3 ------- Run | Yrd Mat Min Mat Min Mat Fac Low Low Dat Pro Fac Was Fac Low Low Zio Pro Fac Upp Upp Zhi Pro Fac Ext Cet Arc Hub Res Active Infowar (turns) 9859 | 55 505 76 134 95 1273 551 405 160 40 134 476 164 666 441 144 419 250 680 195 175 100 200 396 1312 41 71 522 179 Optics 4318 | . . . . . 91 359 . . . . 430 164 666 441 144 419 250 680 195 175 100 200 4 . . . . . Sensors 7220 | . . . . . . 167 405 160 40 134 476 164 666 402 144 419 250 636 195 175 100 188 396 1290 41 71 522 179 Structural 24 | . . . . . . 24 . . . . . . . . . . . . . . . . . . . . . . Traps 547 | . . . . . 360 187 . . . . . . . . . . . . . . . . . . . . . . Seismic 2345 | 55 505 76 134 95 1273 207 . . . . . . . . . . . . . . . . . . . . . . Jamming 30 | . . . . . . . . . . . . . . . . . . . . . . . . 30 . . . . Robot Analysis Total 8 | . 1 . 1 . . . . . . . . . . . . . . . . . 4 . . 2 . . . . Derelict Logs Recovered 11 | . . . . . . . 2 1 . 1 . . . 1 2 . 1 . 1 1 . 1 . . . . . . Drone Launches . | . . . . . . . . . . . . . . . . . . . . . . . . . . . . . Drone Recoveries . | . . . . . . . . . . . . . . . . . . . . . . . . . . . . . Exploration | -11 -10 -10 -9 -9 -8 -7 -7 -7 -7 -6 -6 -6 -6 -6 -6 -6 -5 -5 -5 -5 -5 -4 -4 -4 -4 -4 -4 -3 ------------- Run | Yrd Mat Min Mat Min Mat Fac Low Low Dat Pro Fac Was Fac Low Low Zio Pro Fac Upp Upp Zhi Pro Fac Ext Cet Arc Hub Res Turns Passed 16621 | 159 1225 115 2390 580 2830 555 495 160 40 140 476 164 666 441 144 419 250 680 195 175 100 200 420 1530 400 750 564 358 Spaces Moved 18943 | 83 623 62 1128 327 1396 1514 1200 634 91 358 1375 342 1430 678 399 747 528 977 663 510 147 527 1058 1191 190 212 260 293 Core 75 | 14 . . . . . . . . . . . . . . . . . . . . . . . . . . . 61 Treads 3668 | . 241 62 1128 327 1264 . . . . . . . . . . . . . . . . . . . 177 212 254 3 Legs 597 | 69 382 . . . . . . . . . . . . . . . . . . . . . . . . . 6 140 Wheels . | . . . . . . . . . . . . . . . . . . . . . . . . . . . . . Hover 27 | . . . . . . . . . . . . . . . . . . . . . . . . . . . . 27 Flight 14576 | . . . . . 132 1514 1200 634 91 358 1375 342 1430 678 399 747 528 977 663 510 147 527 1058 1191 13 . . 62 Fastest Speed 21 | 50 120 160 160 160 27 25 24 24 24 24 24 24 24 21 25 25 25 22 29 29 29 29 26 26 112 160 120 40 Average Speed 56 | 108 147 160 160 160 149 25 24 24 24 24 24 24 24 25 25 25 25 28 29 29 29 29 28 31 160 160 159 86 Slowest Speed 320 | 120 190 160 240 160 243 25 25 24 24 24 24 24 97 96 25 25 25 29 29 29 32 29 29 114 320 160 190 160 Overloaded Moves 293 | . . . . . . . . . . . . . . 83 . . . 5 . . . . 18 187 . . . . Propulsion Burnouts . | . . . . . . . . . . . . . . . . . . . . . . . . . . . . . Robots Hopped 38 | . . . . . . 6 . . . . 1 . 2 . . . . 9 . . . 1 1 17 . . . 1 Cave-ins Triggered . | . . . . . . . . . . . . . . . . . . . . . . . . . . . . . Exploration Rate (%) 61 | 4 97 28 92 66 84 47 97 78 74 45 41 90 44 73 69 85 68 36 82 69 61 58 28 87 48 84 27 17 Regions Visited 28 Branch Regions 18 Pre-discovered Areas 22 | . 2 . 3 1 . 3 . . 1 . 2 . 2 . 1 2 1 1 . . 3 . . . . . . . Known Exits Taken 24 | . 1 1 1 1 . 1 1 1 1 1 . . 1 1 1 1 1 1 1 1 1 1 1 1 1 1 1 . Unknown Exits Taken 2 | 1 . . . . 1 . . . . . . . . . . . . . . . . . . . . . . . Scrap Searched 20 | . . . . . . . 3 2 . 2 . . . 1 4 3 . . 1 1 . 3 . . . . . . Spaces Dug 199 | . 1 . 1 3 11 18 33 . . 11 19 . 10 47 7 . 2 4 . 5 . 5 14 2 . . 5 1 Terrain Destroyed 547 | . 1 . 45 3 26 18 33 . . 11 19 . 10 80 7 . 2 4 . 5 . 5 14 14 9 33 170 38 Melee 130 | . . . 1 3 5 18 12 . . 11 19 . 10 11 7 . 2 4 . 5 . 5 14 2 . . . 1 Projectile 45 | . 1 . . . . . . . . . . . . . . . . . . . . . . . 1 33 10 . AOE 372 | . . . 44 . 21 . 21 . . . . . . 69 . . . . . . . . . 12 8 . 160 37 Terrain Rammed . | . . . . . . . . . . . . . . . . . . . . . . . . . . . . . Walls Destroyed . | . . . . . . . . . . . . . . . . . . . . . . . . . . . . . Machines Disabled . | . . . . . . . . . . . . . . . . . . . . . . . . . . . . . Actions | -11 -10 -10 -9 -9 -8 -7 -7 -7 -7 -6 -6 -6 -6 -6 -6 -6 -5 -5 -5 -5 -5 -4 -4 -4 -4 -4 -4 -3 --------- Run | Yrd Mat Min Mat Min Mat Fac Low Low Dat Pro Fac Was Fac Low Low Zio Pro Fac Upp Upp Zhi Pro Fac Ext Cet Arc Hub Res Total 23584 | 121 799 77 1526 356 1831 1648 1352 641 108 388 1464 420 1682 901 423 978 641 1347 665 528 204 558 1140 2275 273 494 374 370 Wait 3140 | 5 64 13 172 4 97 58 111 8 13 12 49 76 194 188 11 230 112 345 3 5 39 21 54 926 44 194 74 18 Move 18844 | 82 622 61 1127 326 1395 1502 1199 633 90 357 1373 341 1425 677 398 746 527 958 662 509 146 524 1055 1159 189 211 259 291 Hop 34 | . . . . . . 5 . . . . 1 . 2 . . . . 9 . . . 1 1 14 . . . 1 Pick Up 157 | 11 12 1 28 4 27 11 6 . . 1 4 1 6 3 . 1 . 1 . 4 4 . 4 15 2 2 2 7 Fast Attach 103 | 3 3 . 5 . 18 3 . . 1 2 2 . 5 1 2 . . 7 . . 6 . . 7 11 14 7 6 Attach 63 | 4 5 . 4 1 7 6 2 . 1 . 1 . 1 3 . . . 2 . 2 . . 2 8 2 . . 12 Detach 12 | . . . . . 4 2 . . 1 . . . . . . . . . . . . . . 1 3 . . 1 Swap 181 | . 10 1 49 2 49 7 4 . . 2 2 1 7 5 1 . . 7 . . 1 4 4 16 5 1 2 1 Drop 213 | 1 9 . 37 4 54 11 5 . 1 3 4 . 10 4 2 1 . 10 . 3 8 . 1 14 10 9 7 5 Fire 458 | 15 66 . 89 11 160 . 2 . . . . . . 5 . . . . . . . . . 5 5 63 22 15 Melee 233 | . . . 1 4 8 24 23 . 1 11 28 1 29 15 9 . 2 8 . 5 . 8 19 30 2 . . 5 Ram 1 | . . . . . . . . . . . . . . . . . . . . . . . . . . . . 1 Kick 11 | . 4 . . . . . . . . . . . . . . . . . . . . . . . . . . 7 Crush 32 | . 4 1 14 . 12 . . . . . . . . . . . . . . . . . . . . . 1 . Escape Stasis 21 | . . . . . . . . . . . . . 3 . . . . . . . . . . 18 . . . . Rewire 62 | . . . . . . . . . . . . . . . . . . . . . . . . 62 . . . . Trap 19 | . . . . . . 19 . . . . . . . . . . . . . . . . . . . . . . Miscellaneous . | . . . . . . . . . . . . . . . . . . . . . . . . . . . . . Route ------- -11/Scrapyard -10/Materials (discovered 6 exits: *Mat x3 / *Min x2 / [*Sub]) -10/Mines (discovered 2 exits: *Mat x2) -9/Materials (discovered 6 exits: *Mat x3 / *Min x2 / *Sto) -9/Mines (discovered 2 exits: *Mat x2) -8/Materials (discovered 2 exits: *Fac x2) -7/Factory (discovered 4 exits: Fac x2 / *Low x2) -7/Lower Caves -7/Lower Caves (discovered 2 exits: *Fac / *Dat) -7/Data Miner -6/Proximity Caves -6/Factory (discovered 2 exits: *Low x2) -6/Waste -6/Factory (discovered 6 exits: Fac x4 / *Low x2) -6/Lower Caves -6/Lower Caves -6/Zion -5/Proximity Caves -5/Factory (discovered 5 exits: Fac x3 / *Upp x2) -5/Upper Caves -5/Upper Caves -5/Zhirov -4/Proximity Caves -4/Factory (discovered 4 exits: *Upp x2 / *Ext x2) -4/Extension (discovered 3 exits: *Res x2 / *Cet) -4/Cetus -4/Archives (discovered 3 exits: *Res / *Hub x2) -4/Hub_04(d) (discovered 4 exits: *Res x4) -3/Research (discovered 4 exits: Res / Arm / Tes x2) History --------- Turn | Location | Event 10 | -11/Scrapyard | Discovered new exit (range 15) 160 | -11/Scrapyard | Entered Materials 304 | -10/Materials | Build established: Mutant 386 | -10/Materials | Discovered new exit (range 6) 506 | -10/Materials | Discovered new exit (range 10) 574 | -10/Materials | Repaired Assault Rifle 600 | -10/Materials | Core integrity fell below 50% 726 | -10/Materials | Central database locked down 857 | -10/Materials | Discovered new exit (range 11) 894 | -10/Materials | Identified exit to Materials 968 | -10/Materials | Loaded intel: 33 machine locations 1032 | -10/Materials | Learned Storage emergency access door positions 1128 | -10/Materials | Identified exit to Mines 1162 | -10/Materials | Learned location of 1 exit from Recycling 1199 | -10/Materials | Core integrity fell below 20% 1259 | -10/Materials | Discovered new exit (range 10) 1385 | -10/Materials | Entered Mines 1484 | -10/Mines | Received a Rocket Launcher from a helpful Derelict 1500 | -10/Mines | Entered Materials 1500 | -9/Materials | Evolved 2 slots: Propulsion x1, Utility x1 1501 | -9/Materials | Identified exit to Materials 1501 | -9/Materials | Identified exit to Mines 1501 | -9/Materials | Identified exit to Storage 3013 | -9/Materials | Discovered exit to Materials (range 16) 3306 | -9/Materials | Discovered exit to Materials (range 12) 3581 | -9/Materials | Learned location of 1 exit from Storage 3582 | -9/Materials | Learned Storage stockpile data 3584 | -9/Materials | Learned Storage emergency access door positions 3593 | -9/Materials | Loaded intel: 11 terminal locations 3797 | -9/Materials | Repaired Shield Generator 3890 | -9/Materials | Entered Mines 3904 | -9/Mines | Learned location of Storage (-9) 4266 | -9/Mines | Assembled infested the area 4371 | -9/Mines | Found a damaged Exp. Sensor Array with a note attached 4376 | -9/Mines | Found Prototype Device 4470 | -9/Mines | Entered Materials 4470 | -8/Materials | Evolved 2 slots: Propulsion x1, Utility x1 5164 | -8/Materials | Build established: Scavenger-Mutant 5275 | -8/Materials | Discovered new exit (range 3) 5513 | -8/Materials | Build established: Mutant 5893 | -8/Materials | Discovered new exit (range 13) 6232 | -8/Materials | Garrison activated, responded to threat 6371 | -8/Materials | Identified Exp. Sensor Array 6662 | -8/Materials | Build established: Scavenger-Mutant 7300 | -8/Materials | Entered Factory 7300 | -7/Factory | Evolved 2 slots: Propulsion x1, Utility x1 7559 | -7/Factory | Identified exit to Lower Caves 7602 | -7/Factory | Learned location of Zion (-6) 7647 | -7/Factory | Learned location of Warlord (-4) 7678 | -7/Factory | Fabricated H-55 Commando (x2) 7683 | -7/Factory | Learned location of 1 exit from Extension 7688 | -7/Factory | Fabricated Exp. Sensor Array (x1) 7728 | -7/Factory | Learned 2 Lower Caves zone layouts 7737 | -7/Factory | Learned 2 Upper Caves zone layouts 7751 | -7/Factory | Identified exit to Factory 7775 | -7/Factory | Learned location of 1 exit from Lower Caves 7855 | -7/Factory | Entered Lower Caves 7855 | -7/Lower Caves | Accompanied by 2 allies 7856 | -7/Lower Caves | Identified exit to Lower Caves 7886 | -7/Lower Caves | Encountered a Warlord checkpoint 7964 | -7/Lower Caves | Build established: Hacker-Sprinter 8209 | -7/Lower Caves | Learned Factory machine intel 8210 | -7/Lower Caves | Learned Factory stockpile data 8350 | -7/Lower Caves | Entered another Lower Caves area 8351 | -7/Lower Caves | Identified exit to Data Miner 8369 | -7/Lower Caves | Discovered exit to Factory (range 6) 8456 | -7/Lower Caves | Learned 4 Factory zone layouts 8497 | -7/Lower Caves | Encountered a Warlord checkpoint 8510 | -7/Lower Caves | Entered Data Miner 8510 | -7/Data Miner | Discovered new exit (range 6) 8515 | -7/Data Miner | Met Data Miner 8520 | -7/Data Miner | Learned location of Section 7 (-2) 8520 | -7/Data Miner | Acquired the access code to Warlord's prototype stash 8523 | -7/Data Miner | Received God Mode back door access code from Data Miner 8536 | -7/Data Miner | Identified exit to Proximity Caves 8550 | -7/Data Miner | Entered Proximity Caves 8651 | -6/Proximity Caves | Discovered exit to Factory (range 3) 8671 | -6/Proximity Caves | Learned Factory garrison access intel 8690 | -6/Proximity Caves | Entered Factory 8690 | -6/Factory | Evolved 2 slots: Utility x2 8691 | -6/Factory | Identified exit to Lower Caves 8694 | -6/Factory | Loaded intel: 290 machine locations 8695 | -6/Factory | Loaded intel: 4 garrison access locations 8973 | -6/Factory | Learned location of 2 exits from Archives 9045 | -6/Factory | Build established: Hacker-Scout 9073 | -6/Factory | Repaired Greatsword 9119 | -6/Factory | Learned location of 1 exit from Lower Caves 9147 | -6/Factory | Learned 4 Lower Caves zone layouts 9166 | -6/Factory | Sucked down chute 9166 | -6/Factory | Entered Waste 9167 | -6/Waste | Met a frightened Derelict 9176 | -6/Waste | Warlord forces began an assault 9192 | -6/Waste | Spotted C-40 Crusher 9195 | -6/Waste | Spotted C-40 Crusher 9197 | -6/Waste | Spotted C-40 Crusher 9198 | -6/Waste | Allies destroyed C-40 Crusher 9204 | -6/Waste | Allies destroyed C-40 Crusher 9204 | -6/Waste | Allies destroyed C-40 Crusher 9215 | -6/Waste | Spotted C-40 Crusher 9228 | -6/Waste | Allies destroyed C-40 Crusher 9237 | -6/Waste | Spotted C-40 Crusher 9242 | -6/Waste | Allies destroyed C-40 Crusher 9270 | -6/Waste | Spotted C-40 Crusher 9271 | -6/Waste | Lost 10 allies 9275 | -6/Waste | Allies destroyed C-40 Crusher 9279 | -6/Waste | Discovered new exit (range 22) 9296 | -6/Waste | Identified exit to Factory 9330 | -6/Waste | Entered Factory 9330 | -6/Factory | Accompanied by 9 allies 9345 | -6/Factory | Discovered new exit (range 13) 9390 | -6/Factory | Garrison activated, responded to threat 9398 | -6/Factory | Found Prototype Launcher 9398 | -6/Factory | Identified Scatter Rocket Array 9621 | -6/Factory | Learned location of Upper Caves (-5) 9664 | -6/Factory | Identified exit to Factory 9697 | -6/Factory | Learned 2 Extension zone layouts 9728 | -6/Factory | Loaded intel: 6 fabricator locations 9729 | -6/Factory | Learned location of 1 exit from Lower Caves 9768 | -6/Factory | Learned location of 2 exits from Archives 9964 | -6/Factory | Fabricated Biomechanical Wings (x1) 9996 | -6/Factory | Entered Lower Caves 9997 | -6/Lower Caves | Identified exit to Lower Caves 10331 | -6/Lower Caves | Encountered a Warlord checkpoint 10350 | -6/Lower Caves | Learned Factory emergency access door positions 10398 | -6/Lower Caves | Acquired the password to a Derelict Tinkerer's latest research 10437 | -6/Lower Caves | Entered another Lower Caves area 10438 | -6/Lower Caves | Identified exit to Zion 10515 | -6/Lower Caves | Spotted B-75 Beast 10518 | -6/Lower Caves | Learned Factory emergency access door positions 10519 | -6/Lower Caves | Learned location of Extension (-4) 10581 | -6/Lower Caves | Entered Zion 10594 | -6/Zion | Discovered new exit (range 13) 10600 | -6/Zion | System corruption cleaned by Quarantine Array 10645 | -6/Zion | Received a visual enhancement algorithm 10726 | -6/Zion | Met Imprinter 10747 | -6/Zion | Gained Derelict followers 10769 | -6/Zion | Identified exit to Proximity Caves 11000 | -6/Zion | Entered Proximity Caves 11000 | -5/Proximity Caves | Accompanied by 7 allies 11085 | -5/Proximity Caves | Learned location of Armory (-3) 11131 | -5/Proximity Caves | Discovered exit to Factory (range 7) 11250 | -5/Proximity Caves | Entered Factory 11250 | -5/Factory | Evolved 2 slots: Power x1, Propulsion x1 11251 | -5/Factory | Identified exit to Upper Caves 11251 | -5/Factory | Lost 7 allies 11430 | -5/Factory | Spotted B-75 Beast 11474 | -5/Factory | Found Prototype Processor 11474 | -5/Factory | Identified Exp. Targeting Computer 11632 | -5/Factory | Learned Extension emergency access door positions 11694 | -5/Factory | Learned location of Testing (-3) 11744 | -5/Factory | Learned 4 Extension zone layouts 11785 | -5/Factory | Learned Armory stockpile data 11863 | -5/Factory | Identified exit to Factory 11930 | -5/Factory | Entered Upper Caves 12038 | -5/Upper Caves | Encountered a Warlord checkpoint 12049 | -5/Upper Caves | Discovered new exit (range 21) 12089 | -5/Upper Caves | Learned Factory terminal intel 12122 | -5/Upper Caves | Identified exit to Upper Caves 12125 | -5/Upper Caves | Entered another Upper Caves area 12164 | -5/Upper Caves | Encountered a Warlord checkpoint 12221 | -5/Upper Caves | Learned 4 Factory zone layouts 12276 | -5/Upper Caves | Discovered new exit (range 8) 12277 | -5/Upper Caves | Identified exit to Zhirov 12300 | -5/Upper Caves | Entered Zhirov 12300 | -5/Zhirov | Discovered new exit (range 3) 12306 | -5/Zhirov | Met Zhirov 12312 | -5/Zhirov | Learned location of Quarantine (-2) 12312 | -5/Zhirov | Learned location of Command (-1) 12314 | -5/Zhirov | Zhirov requested help retrieving the SGEMP Prototype 12319 | -5/Zhirov | Found Alien Artifact 12319 | -5/Zhirov | Identified Integrated Dissipator 12319 | -5/Zhirov | Installed Integrated Dissipator, increased core heat dissipation (+20) 12350 | -5/Zhirov | Found Alien Artifact 12362 | -5/Zhirov | Identified exit to Proximity Caves 12400 | -5/Zhirov | Entered Proximity Caves 12472 | -4/Proximity Caves | Spotted B-86 Titan 12485 | -4/Proximity Caves | Attracted the attention of an 0b10 checkpoint 12513 | -4/Proximity Caves | Discovered exit to Factory (range 5) 12560 | -4/Proximity Caves | Learned Research stockpile data 12600 | -4/Proximity Caves | Entered Factory 12600 | -4/Factory | Evolved 2 slots: Utility x2 12601 | -4/Factory | Identified exit to Extension 12604 | -4/Factory | Loaded intel: 28 terminal locations 12715 | -4/Factory | Found Gamma Bomb Array 12716 | -4/Factory | Found Gamma Bomb Array 12722 | -4/Factory | Identified exit to Upper Caves 12890 | -4/Factory | Build established: Hacker-Sprinter 13020 | -4/Factory | Entered Extension 13021 | -4/Extension | Identified exit to Cetus 13022 | -4/Extension | Identified exit to Research 13065 | -4/Extension | Rescued a captive Derelict 13065 | -4/Extension | Central database locked down 13211 | -4/Extension | Lost 3 parts (2p1u) 13388 | -4/Extension | Rescued a captive Derelict 13391 | -4/Extension | Rescued a captive Derelict 13702 | -4/Extension | Spotted B-86 Titan 13709 | -4/Extension | Spotted B-86 Titan 13731 | -4/Extension | Rescued A7 13753 | -4/Extension | Lost 7 allies 13767 | -4/Extension | Rescued a captive Derelict 13767 | -4/Extension | Rescued a captive Derelict 13781 | -4/Extension | Rescued a captive Derelict 13781 | -4/Extension | Rescued a captive Derelict 13800 | -4/Extension | Rescued a captive Derelict 13809 | -4/Extension | Rescued a captive Derelict 13827 | -4/Extension | Allies destroyed B-86 Titan 13852 | -4/Extension | Allies destroyed B-86 Titan 13856 | -4/Extension | Extracted ID and sensor layout for unrecognized location from A7's data core 13880 | -4/Extension | Lost 6 allies 13950 | -4/Extension | Lost 4 allies 13965 | -4/Extension | Destroyed 8 combat bots 14002 | -4/Extension | Rescued a captive Derelict 14006 | -4/Extension | Rescued a captive Derelict 14039 | -4/Extension | Discovered exit to Research (range 10) 14105 | -4/Extension | Learned location of 2 exits from Factory 14168 | -4/Extension | Learned Testing security intel 14221 | -4/Extension | Learned 8 Research zone layouts 14265 | -4/Extension | Learned Testing terminal intel 14301 | -4/Extension | Learned Research repair station intel 14326 | -4/Extension | Learned Quarantine non-interactive machine intel 14343 | -4/Extension | Learned Factory stockpile data 14371 | -4/Extension | Learned Testing garrison access intel 14458 | -4/Extension | Learned location of 1 exit from Armory 14550 | -4/Extension | Entered Cetus 14550 | -4/Cetus | Accompanied by 4 allies 14587 | -4/Cetus | Spotted Cetus Guard 14589 | -4/Cetus | Spotted Cetus Guard 14589 | -4/Cetus | Spotted Cetus Guard 14589 | -4/Cetus | Spotted Cetus Guard 14603 | -4/Cetus | Destroyed Cetus Guard 14603 | -4/Cetus | Destroyed Cetus Guard 14604 | -4/Cetus | Destroyed Cetus Guard 14605 | -4/Cetus | Destroyed Cetus Guard 14624 | -4/Cetus | Lost 4 allies 14630 | -4/Cetus | System corruption reached 10% 14633 | -4/Cetus | Lost 3 parts (1n2u) 14772 | -4/Cetus | System corruption reached 30% 14911 | -4/Cetus | Discovered new exit (range 16) 14933 | -4/Cetus | Identified exit to Archives 14950 | -4/Cetus | Entered Archives 14951 | -4/Archives | Identified exit to Hub_04(d) 15016 | -4/Archives | Build established: Scavenger-Mutant 15700 | -4/Archives | Entered Hub_04(d) 15876 | -4/Hub_04(d) | Found Prototype Launcher 15876 | -4/Hub_04(d) | Identified Mni. Smartbomb Launcher 16234 | -4/Hub_04(d) | Network Hub disabled 16264 | -4/Hub_04(d) | Entered Research 16264 | -3/Research | Evolved 2 slots: Utility x2 16265 | -3/Research | Identified exit to Research 16265 | -3/Research | Identified exit to Armory 16267 | -3/Research | Loaded intel: 4 repair station locations 16286 | -3/Research | Lost 8 parts (1p4n1u2w) 16292 | -3/Research | Identified exit to Testing 16476 | -3/Research | Lost 5 parts (2p2u1w) 16508 | -3/Research | Build established: Hacker-Mutant 16539 | -3/Research | Core integrity fell below 50% 16564 | -3/Research | Core integrity fell below 20% 16595 | -3/Research | Lost 17 parts (2p6n6u3w) 16612 | -3/Research | Spotted B-86 Titan 16622 | -3/Research | Destroyed by H-77 Assassin with Coil Gun Last Messages --------------- 16589_ Acquired Field Propulsion Array. 16592_ Slug penetrates Door. 16593_ R-10 Processor collects Adv. Datajack. 16602_ Triggered Shock Trap. 16602_ The floor emits a surge of raw power. 16602_ System corrupted (+1). 16607_ Slug penetrates Wall. 16607_ Penetrated by Slug. 16607_ Slug penetrates Wall. 16611_ Slug penetrates Terminal. 16611_ Penetrated by Slug. 16612_ Slug penetrates Graviton Restrictor. 16613_ Graviton Restrictor disabled. 16613_ Impulse Thruster destroyed. 16616_ Connecting with Terminal... >>Trojan(Disrupt) Trojan loaded successfully. Testing... Disruption routine running. 16622_ Slug penetrates Wall. Map ----- +----------------------------------------------------+ | # // " #????????????# """ | | # /= # """"" +????????????# """ | | """"" # # """"" #????????????# """ | | """"" # # """"" #????????????# ??? | | """"" # # ??? #????????????# ??? | | #####+###### ??? #????????????# ??? | | ##### #?# ?? #?????????????###??? | | """"" + #?" ""??" ???????????????????? | | """"" ##### #"" """""?? +??????????????????? | | """"" #???# #"T """"" ###????????????????? | | #???# #"" #????????????????? | | ##### #?" ?????????????????? | | +#######T ## ### "??????????????????? | | """"" #??????????????????? | | """"" #??????????????????? | | """" ###????????????????? | | ####?????????????? | | #####+######## "??????????? | | # ?????+ % "??????????? | | # ???###########;## ??????????? | | #!!! ???????# ! #??????###?????????????? | | #!!! #?????# !#??????????????????????? | | #!!! #?????# T #??????????????????????? | | # ! #?????#! #??????????????????????? | | # #?????# #??????????????????????? | | # #?????# @#??????????????????????? | | ###########?????########??????????????????????? | | ####?????????????????????????????????????????????? | | ?????????????????????????????????????????????????? | | ?????????????????????????????????????????????????? | | ?????????????????????????????????????????????????? | | | | | | | | | | | | | | | | | | | | | | | | | | | | | | | | | | | | | | | +----------------------------------------------------+ Best States ------------- Heat Dissipation 66 Energy Generation 48 Energy Capacity 525 Matter Stores 300 Matter Capacity 300 Sight Range 22 Robot Scan Range 20 Terrain Scan Density 10 Jamming Range 12 Corruption Containment 12 Armor Coverage 2100 Resistance: TH 10 Core Shielding 20 Propulsion Shielding 66 Utility Shielding 66 Phase Shifting 5 Evasion (%) 65 Recoil Reduction 5 Offensive Hacking 36 Defensive Hacking 14 Authchip Count 1 Item Schematics ----------------- Lgt. Armor Plating | -9/Materials | Extracted Terrain Scan Processor | -9/Materials | Extracted Exp. Sensor Array | -8/Materials | Scanalyzed Combat Drone Bay | -7/Data Miner | Free Lgt. Regenerative Plating | -7/Data Miner | Free Biomechanical Wings | -7/Data Miner | Free Thermal Defense Suite | -7/Data Miner | Free Imp. Heavy Machine Gun | -7/Data Miner | Free Antigrav System | -7/Data Miner | Free Adv. Cooling System | -7/Data Miner | Free Imp. Arc Projector | -7/Data Miner | Free Remote Shield | -7/Data Miner | Free Mic. Fission Core | -7/Data Miner | Free HERF Cannon | -7/Data Miner | Free Adv. Transmission Jammer | -7/Data Miner | Free Imp. Propulsion Shielding | -6/Factory | Hacked Hpw. Shock Rifle | -6/Zion | Archive Adv. Plasma Cannon | -6/Zion | Archive Matter Compressor | -6/Zion | Archive Imp. Transmission Jammer | -6/Zion | Archive Field Propulsion Drive | -6/Zion | Archive Hvy. Flak Cannon | -6/Zion | Archive Adv. Thermal Generator | -6/Zion | Archive Matter Neutralizer | -6/Zion | Archive Magnetic Acceleration Cannon | -6/Zion | Archive Imp. Weapon Cycler | -6/Zion | Archive Imp. Medium Treads | -6/Zion | Archive Imp. Remote Datajack | -6/Zion | Archive Fusion Compressor | -6/Zion | Archive Assault Drone Bay | -5/Zhirov | Free Exp. Heat Sink | -5/Zhirov | Free Exp. Optical Array | -5/Zhirov | Free Imp. Arc Thrower | -5/Zhirov | Free Field Propulsion Array | -4/Extension | Hacked Enh. Nova Cannon | -3/Research | Hacked Hvy. Shield Leg | -3/Research | Hacked Robot Schematics ------------------ S-27 Virus | -7/Data Miner | Free O-24 Administrator | -7/Data Miner | Free A-15 Conveyor | -7/Data Miner | Free E-15 Imp | -7/Data Miner | Free B-48 Gladiator | -7/Data Miner | Free H-66 Slayer | -6/Zion | Archive R-10 Processor | -6/Zion | Archive Fabricated ------------ H-55 Commando | x2 | -7/Factory | Preloaded Exp. Sensor Array | x1 | -7/Factory | Authchip Biomechanical Wings | x1 | -6/Factory | Authchip Repaired ---------- Assault Rifle | 14% | -10/Materials Shield Generator | 26% | -9/Materials Greatsword | 65% | -6/Factory Alien Tech Used ----------------- Integrated Dissipator Achievements -------------- None Challenges ------------ None Game ------ Seed ProtonBackupFlail Manual? 0 Play Time 03:45:53 Cumulative 284.8 hours Start 2024.11.08 @ 14:45:39 End 2024.11.09 @ 19:26:11 Sessions 7 Manual Loads 0 Difficulty Rogue Special Mode None Game No. 132 Rogue 132 Adventurer 0 Explorer 0 Win Type - Total 10 Types 6/0/3/1/0/0/0/0/0 Lore% 75 Gallery% 75 Achievement% 65 Wizard Run 0 Options --------- Layout 0 ASCII 0 Keyboard 1 Movement Numpad Keybinds 0 Fullscreen 2 Font 18/SmallcapsGlow Map View 76x50 Zoom Use 0% Tactical HUD 1 Map Filters NONE Filters NONE Steam 1 RUN: 9c598c2a-8340-4e6f-a1c6-bb7302a63d08